bitfinex-derivatives/quotes_ETHF0:USTF0_20241004
["timestamp","ask_amount","ask_price","bid_price","bid_amount"]
[1728030132930,0.4182,2391.3,2391.2,3.26]
[1728030133238,1.53234,2391.3,2391.2,3.26]
[1728030133438,3.62594,2391.7,2391.4,0.41818]
[1728030133737,0.41814,2391.7,2391.5,3.26]
[1728030134239,1.53234,2391.6,2391.5,3.26]
[1728030134435,1.95049,2391.6,2391.5,3.26]
[1728030135039,1.53234,2391.6,2391.5,3.26]
[1728030135240,1.95049,2391.6,2391.5,3.26]
[1728030135634,1.53234,2391.6,2391.5,3.26]
[1728030136443,1.53234,2391.6,2391.5,3.67816]
[1728030136748,1.53234,2391.6,2391.5,3.26]
[1728030136931,1.53234,2391.6,2391.5,3.67816]
[1728030137131,1.53234,2391.6,2391.5,3.26]
[1728030138037,1.53234,2391.6,2391.5,3.67816]
[1728030138243,1.95049,2391.6,2391.5,3.26]
[1728030138635,1.53234,2391.6,2391.5,3.26]
[1728030139336,1.53234,2391.6,2391.5,3.67816]
[1728030139544,1.53234,2391.6,2391.5,3.26]
[1728030139733,1.95049,2391.6,2391.5,3.26]
[1728030140936,0.41815,2391.6,2391.5,3.26]
[1728030141141,1.95049,2391.6,2391.5,3.26]
[1728030141337,1.53234,2391.6,2391.5,3.67816]
[1728030142339,1.262,2391.9,2391.5,3.67816]
[1728030142340,0.41811,2391.8,2391.6,0.41813]
[1728030142551,0.41811,2391.8,2391.7,0.8873]
[1728030143042,1.95045,2391.8,2391.7,0.8873]
[1728030143247,0.41815,2391.6,2391.5,3.26]
[1728030143445,1.53234,2391.6,2391.5,3.26]
[1728030143949,1.95049,2391.6,2391.5,3.26]
[1728030144251,1.95049,2391.6,2391.3,3.67819]
[1728030144542,1.53234,2391.4,2391.3,3.67819]
[1728030145142,1.53234,2391.4,2391.3,4.57439]
[1728030148546,3.2078,2391.8,2391.3,4.1562]
[1728030148841,0.41806,2392.2,2391.7,3.26]
[1728030149045,0.41806,2392.2,2392.1,3.26]
[1728030150455,0.9459,2392.3,2391.9,3.26]
[1728030150456,1.99099,2392.3,2391.9,3.26]
[1728030150648,0.41806,2392.1,2391.9,3.26]
[1728030151241,0.9459,2392.3,2391.8,0.8814]
[1728030151441,0.9459,2392.3,2391.5,6.4678]
[1728030151442,0.41809,2391.9,2391.6,0.41814]
[1728030151642,0.8797,2391.8,2391.3,4.148]
[1728030151847,3.2078,2391.7,2391.3,4.148]
[1728030152147,0.41817,2391.5,2391.2,1.31311]
[1728030152546,0.8707,2391.6,2391.2,1.31311]
[1728030152547,1.28886,2391.6,2391.2,1.31311]
[1728030152745,0.41819,2391.4,2391.1,6.4678]
[1728030152943,0.41817,2391.5,2391.1,6.88603]
[1728030153151,1.28886,2391.6,2391.2,0.41821]
[1728030153357,0.8707,2391.6,2391.1,6.4678]
[1728030153649,0.41817,2391.5,2391.1,6.88602]
[1728030153849,0.8707,2391.6,2391.1,6.4678]
[1728030154048,0.8707,2391.6,2391.2,0.41821]
[1728030154250,0.8707,2391.6,2391.1,6.88603]
[1728030154453,0.8707,2391.6,2391.1,6.4678]
[1728030154748,0.41818,2391.4,2391.1,6.4678]
[1728030154948,0.41818,2391.4,2391.1,6.88603]
[1728030155140,0.8707,2391.6,2391.3,0.41819]
[1728030155338,0.8707,2391.6,2391.4,0.886]
[1728030156146,1.28885,2391.6,2391.4,0.886]
[1728030158853,0.8707,2391.6,2391.4,0.886]
[1728030159048,0.41816,2391.5,2391.1,6.4678]
[1728030159250,1.91609,2391.6,2391.1,6.88602]
[1728030159564,0.41819,2391.4,2391.1,6.88602]
[1728030160260,0.8707,2391.6,2391.1,6.4678]
[1728030160556,0.41818,2391.4,2391.2,0.41821]
[1728030160758,0.8707,2391.6,2391.1,6.4678]
[1728030161055,0.41817,2391.5,2391.2,0.41821]
[1728030161260,0.8707,2391.6,2391.2,0.41821]
[1728030161557,0.41817,2391.5,2391.2,0.41821]
[1728030161968,0.8707,2391.6,2391.2,0.41821]
[1728030161969,0.41819,2391.4,2391.2,0.41821]
[1728030162151,0.8707,2391.6,2391.2,0.41821]
[1728030162351,0.41818,2391.4,2391.3,0.9285]
[1728030164067,0.41816,2391.6,2391.3,1.34669]
[1728030164259,3.2078,2391.7,2391.4,0.41817]
[1728030164260,0.41813,2391.7,2391.4,0.41817]
[1728030164457,0.41815,2391.6,2391.3,4.60669]
[1728030166957,0.41813,2391.7,2391.3,4.1885]
[1728030167257,0.41816,2391.6,2391.3,4.1885]
[1728030167659,0.41814,2391.7,2391.3,4.6067]
[1728030168261,0.41815,2391.6,2391.3,4.6067]
[1728030169573,0.41815,2391.6,2391.3,4.1885]
[1728030170478,0.41815,2391.6,2391.3,4.6067]
[1728030170669,2.80269,2391.8,2391.3,4.6067]
[1728030170971,0.41815,2391.6,2391.3,4.1885]
[1728030171171,0.41815,2391.6,2391.3,4.6067]
[1728030171371,2.80269,2391.8,2391.3,4.6067]
[1728030171874,0.41815,2391.6,2391.3,4.6067]
[1728030172378,0.41814,2391.7,2391.4,0.41817]
[1728030172766,0.8797,2391.8,2391.3,4.1885]
[1728030173069,0.8797,2391.8,2391.7,0.41813]
[1728030173268,3.2078,2392.0,2391.7,3.26]
[1728030173579,3.2078,2392.0,2391.9,0.41809]
[1728030173871,1.29915,2392.2,2391.9,3.67808]
[1728030174075,0.8811,2392.2,2392.1,3.26]
[1728030174264,0.8811,2392.2,2391.9,0.41808]
[1728030174265,1.29914,2392.2,2391.9,3.26]
[1728030174866,0.41806,2392.1,2391.8,1.8163]
[1728030175174,0.8811,2392.2,2391.8,1.8163]
[1728030175372,0.41807,2392.1,2391.8,1.8163]
[1728030175765,0.8811,2392.2,2391.8,0.9173]
[1728030176082,1.27637,2392.1,2391.8,0.9173]
[1728030176676,0.8583,2392.1,2391.8,0.9173]
[1728030177078,1.27637,2392.1,2391.8,0.9173]
[1728030177872,0.8583,2392.1,2391.8,0.9173]
[1728030178281,1.27636,2392.1,2391.8,0.9173]
[1728030178481,0.8811,2392.2,2391.9,3.26]
[1728030178780,0.8811,2392.2,2392.0,0.41807]
[1728030178973,5.79318722,2392.6,2391.9,3.26]
[1728030179170,2.22739,2392.6,2392.1,3.67804]
[1728030179379,0.41799,2392.5,2392.2,0.9102]
[1728030179681,0.41802,2392.4,2392.2,0.9102]
[1728030180077,2.85435,2392.6,2392.2,0.9102]
[1728030180078,0.418,2392.5,2392.2,0.9102]
[1728030180282,0.41801,2392.4,2392.2,0.9102]
[1728030180478,2.22738,2392.6,2392.2,1.32824]
[1728030181377,2.22738,2392.6,2392.2,0.9102]
[1728030181378,1.8094,2392.6,2392.2,0.9102]
[1728030181981,1.35288,2392.6,2392.2,1.32824]
[1728030182185,0.9349,2392.6,2392.2,0.9102]
[1728030182374,0.41802,2392.3,2392.2,0.9102]
[1728030183380,0.41802,2392.4,2392.2,0.9102]
[1728030183981,0.9471,2392.5,2392.2,0.9102]
[1728030184180,0.41802,2392.3,2392.2,0.9102]
[1728030184386,0.41802,2392.4,2392.2,0.9102]
[1728030184688,0.9471,2392.5,2392.2,0.9102]
[1728030184883,0.41802,2392.3,2392.2,0.9102]
[1728030186588,4.25283,2392.4,2391.9,3.26]
[1728030186786,0.41806,2392.1,2391.8,1.33821]
[1728030187285,0.41805,2392.2,2391.8,0.9201]
[1728030187486,3.2078,2392.4,2392.1,3.26]
[1728030187681,0.41802,2392.3,2392.2,2.7805]
[1728030187983,0.41802,2392.4,2392.2,2.7805]
[1728030188189,0.418,2392.5,2392.2,2.7805]
[1728030189991,0.41801,2392.4,2392.2,2.7805]
[1728030190294,0.41802,2392.3,2392.2,2.7805]
[1728030190780,4.25278,2392.5,2392.2,2.7805]
[1728030190982,0.41802,2392.4,2392.2,2.7805]
[1728030191181,0.41802,2392.3,2392.2,2.7805]
[1728030191382,0.41802,2392.3,2392.2,1.862]
[1728030193784,0.41802,2392.3,2392.2,0.9201]
[1728030195285,3.2078,2392.5,2392.2,8.3601]
[1728030195487,3.62579,2392.5,2392.4,3.26]
[1728030195994,3.62579,2392.5,2392.3,0.9067]
[1728030197485,3.62579,2392.5,2392.2,4.59814]
[1728030197992,3.2078,2392.5,2392.2,4.59813]
[1728030198292,3.6258,2392.5,2392.2,4.59814]
[1728030199184,3.6258,2392.5,2392.2,4.1801]
[1728030199393,0.41801,2392.4,2392.2,4.59813]
[1728030200387,0.41801,2392.5,2392.2,4.1801]
[1728030200588,0.41801,2392.4,2392.2,4.59813]
[1728030200787,0.9349,2392.6,2392.2,4.1801]
[1728030200988,0.41801,2392.4,2392.2,4.59813]
[1728030201895,0.41802,2392.3,2392.2,4.1801]
[1728030202090,1.97985,2392.6,2392.2,4.59814]
[1728030202091,0.41802,2392.4,2392.2,4.59814]
[1728030203187,1.04498,2392.5,2392.2,4.1801]
[1728030203393,0.41802,2392.3,2392.2,4.1801]
[1728030203998,0.41802,2392.3,2392.2,4.59814]
[1728030204490,3.2078,2392.8,2392.2,8.3601]
[1728030204698,0.41797,2392.6,2392.4,3.26]
[1728030204893,0.41799,2392.5,2392.4,4.2029]
[1728030205392,1.04489,2392.7,2392.4,4.2029]
[1728030205783,0.41799,2392.5,2392.4,4.2029]
[1728030206404,0.41799,2392.5,2392.4,3.26]
[1728030212496,0.41798,2392.6,2392.4,3.26]
[1728030212800,0.41799,2392.5,2392.4,3.26]
[1728030213303,0.41798,2392.6,2392.4,3.26]
[1728030213498,3.2078,2392.7,2392.4,3.26]
[1728030213700,3.2078,2392.7,2392.6,3.26]
[1728030214103,3.2078,2392.7,2392.6,4.168]
[1728030214605,3.2078,2392.7,2392.6,6.0496]
[1728030215296,3.62575,2392.7,2392.6,6.0496]
[1728030216105,0.41795,2392.7,2392.6,6.0496]
[1728030218703,3.2078,2392.9,2392.6,6.0496]
[1728030218906,3.2078,2393.2,2392.8,3.26]
[1728030219095,6.833,2394.2,2393.1,6.4678]
[1728030219096,0.41777,2393.8,2393.1,6.4678]
[1728030219294,0.41777,2393.8,2393.7,3.26]
[1728030219499,3.2078,2394.1,2393.7,3.26]
[1728030219797,3.2078,2394.1,2393.8,0.9017]
[1728030220299,0.41764,2394.5,2394.0,6.4678]
[1728030220504,3.2078,2394.7,2394.4,3.26]
[1728030220697,3.2078,2394.7,2394.5,3.26]
[1728030220898,3.2078,2394.7,2394.3,3.2078]
[1728030221101,3.2078,2394.7,2394.5,3.26]
[1728030221909,3.2078,2394.7,2394.5,4.1921]
[1728030222098,4.18628518,2394.6,2394.0,3.2078]
[1728030222404,0.01028518,2394.6,2394.4,3.26]
[1728030223203,0.01028518,2394.6,2394.0,3.2078]
[1728030223204,4.18628518,2394.6,2394.0,3.2078]
[1728030223404,0.01028518,2394.6,2394.1,3.26]
[1728030223593,1.32101518,2394.6,2394.1,3.26]
[1728030224594,1.36174,2394.5,2394.1,3.26]
[1728030224800,0.41768,2394.3,2394.0,3.2078]
[1728030225109,0.41769,2394.2,2394.0,3.2078]
[1728030225428,0.8653,2394.4,2393.5,7.5727]
[1728030225429,0.41773,2394.0,2393.5,7.5727]
[1728030225703,0.9441,2393.9,2393.5,7.3627]
[1728030225910,1.36185,2393.9,2393.5,7.3627]
[1728030226406,0.9441,2393.9,2393.5,7.3627]
[1728030226802,0.9441,2393.9,2393.5,6.4678]
[1728030226803,0.41776,2393.8,2393.5,6.4678]
[1728030227206,0.41779,2393.7,2393.5,6.4678]
[1728030227402,1.8094,2393.9,2393.5,3.2078]
[1728030227403,0.4178,2393.6,2393.5,3.2078]
[1728030227796,4.5954,2393.6,2393.5,3.2078]
[1728030228197,10.5954,2393.6,2393.5,3.2078]
[1728030228400,0.41783,2393.5,2393.0,3.47]
[1728030228708,0.41783,2393.5,2393.0,3.26]
[1728030229399,0.41783,2393.5,2393.1,3.26]
[1728030229611,3.2078,2393.7,2393.1,3.26]
[1728030229798,0.41785,2393.3,2393.1,3.26]
[1728030230003,4.25228,2393.7,2393.1,3.26]
[1728030230201,0.41785,2393.4,2393.1,3.26]
[1728030230399,0.9281,2393.3,2393.1,3.26]
[1728030231204,0.9281,2393.3,2393.1,3.67788]
[1728030231510,0.9281,2393.3,2393.1,6.88568]
[1728030231712,0.8974,2393.8,2393.2,0.41786]
[1728030231713,0.41779,2393.7,2393.2,0.41786]
[1728030231908,1.34588,2393.7,2393.3,3.26]
[1728030232302,0.9281,2393.7,2393.5,3.26]
[1728030233108,0.9281,2393.7,2393.4,0.9669]
[1728030233306,0.4178,2393.6,2393.4,0.9669]
[1728030233506,0.41784,2393.4,2393.1,3.2078]
[1728030233817,7.3959,2393.7,2393.1,3.2078]
[1728030234008,0.41787,2393.2,2393.1,3.2078]
[1728030234203,1.0445,2393.6,2393.1,3.2078]
[1728030234204,0.41786,2393.3,2393.1,3.2078]
[1728030234408,0.8962,2393.2,2393.1,3.2078]
[1728030234611,1.31407,2393.2,2393.1,3.2078]
[1728030235016,5.49247,2393.2,2393.1,3.2078]
[1728030236113,1.31407,2393.2,2393.1,3.2078]
[1728030236313,5.49247,2393.2,2393.1,3.2078]
[1728030236606,5.0746,2393.2,2393.1,3.2078]
[1728030236812,5.49247,2393.2,2393.1,3.2078]
[1728030237210,0.8962,2393.2,2393.1,3.2078]
[1728030237509,0.8962,2393.2,2393.1,6.4678]
[1728030238013,0.41783,2393.5,2393.1,3.62568]
[1728030238208,1.3896,2393.6,2393.1,3.62568]
[1728030238408,1.3896,2393.6,2393.2,0.9132]
[1728030238608,0.9718,2393.6,2393.2,1.33106]
[1728030238913,0.9718,2393.6,2393.4,6.88562]
[1728030239820,0.9718,2393.6,2393.4,6.4678]
[1728030240010,1.3896,2393.6,2393.4,6.4678]
[1728030240205,0.9718,2393.6,2393.4,3.2078]
[1728030242210,0.9718,2393.6,2393.4,6.4678]
[1728030242411,0.41775,2393.9,2393.5,0.41781]
[1728030242612,0.9663,2393.9,2393.4,6.88562]
[1728030242919,0.9663,2393.9,2393.6,3.26]
[1728030243121,0.9663,2393.9,2393.7,3.2078]
[1728030243328,0.9663,2393.9,2393.7,4.145]
[1728030243811,0.42791518,2394.6,2394.1,0.41771]
[1728030244013,0.42791518,2394.6,2394.1,3.2078]
[1728030244014,1.39421518,2394.6,2394.1,3.2078]
[1728030244414,0.41764,2394.5,2394.1,3.2078]
[1728030244609,1.04411,2394.5,2393.8,7.3641]
[1728030244812,1.04411,2394.5,2393.8,7.78185]
[1728030244813,0.41768,2394.3,2393.8,7.78185]
[1728030245014,0.41768,2394.3,2393.8,7.78186]
[1728030245317,1.8824,2394.5,2393.9,0.41773]
[1728030245519,1.8824,2394.5,2393.8,7.3641]
[1728030245520,0.97658518,2394.6,2394.2,0.41768]
[1728030245716,0.97658518,2394.6,2394.5,3.26]
[1728030245717,0.01028518,2394.6,2394.5,3.26]
[1728030245918,0.01028518,2394.6,2394.5,5.53844]
[1728030246120,4.121,2395.2,2394.5,9.71444]
[1728030246423,0.41753,2395.2,2394.5,5.53843]
[1728030246624,0.41754,2395.1,2394.8,3.2078]
[1728030246920,4.128,2395.3,2394.5,8.74624]
[1728030246921,0.41753,2395.2,2394.5,8.74624]
[1728030247218,0.41752,2395.2,2394.5,8.74623]
[1728030247426,4.54551,2395.3,2394.6,0.41761]
[1728030247621,0.41753,2395.2,2394.8,3.26]
[1728030247810,0.41755,2395.1,2394.8,3.26]
[1728030248018,0.41753,2395.2,2394.6,3.26]
[1728030248319,7.388,2395.3,2394.6,3.26]
[1728030248510,0.41754,2395.1,2394.6,3.26]
[1728030249418,4.128,2395.3,2394.6,3.26]
[1728030249627,6.4678,2394.7,2394.3,0.9476]
[1728030249815,0.9012,2394.6,2394.3,0.9476]
[1728030250020,3.26,2394.5,2394.0,0.8866]
[1728030250313,0.41772,2394.1,2393.9,3.2078]
[1728030250522,0.41772,2394.1,2393.5,0.21]
[1728030250523,6.4678,2394.1,2393.5,3.2078]
[1728030250919,0.41777,2393.8,2393.5,3.2078]
[1728030251319,3.26,2393.8,2393.5,3.2078]
[1728030251621,3.2078,2393.8,2393.0,0.41789]
[1728030251826,3.2078,2393.8,2393.0,4.9467]
[1728030252023,0.41776,2393.9,2393.3,0.41785]
[1728030252226,1.99681,2394.5,2393.4,0.9797]
[1728030252227,3.2078,2394.4,2393.4,0.9797]
[1728030252419,0.41767,2394.3,2393.6,0.41779]
[1728030252820,0.41767,2394.3,2393.7,1.35447]
[1728030253123,0.9419,2394.4,2393.9,0.41774]
[1728030253421,0.9419,2394.4,2394.0,0.9797]
[1728030253623,0.41765,2394.5,2394.0,0.9797]
[1728030253825,4.25181,2394.8,2393.8,3.2078]
[1728030253826,0.41773,2394.0,2393.8,3.2078]
[1728030254222,0.41774,2393.9,2393.8,3.2078]
[1728030254422,0.41774,2394.0,2393.8,3.2078]
[1728030254619,0.4177,2394.2,2393.8,3.2078]
[1728030254828,6.08956,2394.4,2393.8,3.2078]
[1728030254829,0.41773,2394.0,2393.8,3.2078]
[1728030255128,0.41767,2394.3,2393.8,3.2078]
[1728030255325,0.4177,2394.2,2393.8,3.2078]
[1728030255525,0.41769,2394.3,2393.8,3.2078]
[1728030255726,0.9074,2394.4,2393.8,3.2078]
[1728030255919,0.41769,2394.2,2393.8,3.2078]
[1728030256322,0.9074,2394.4,2393.8,3.2078]
[1728030256625,0.9074,2394.4,2393.8,3.62556]
[1728030256626,0.41769,2394.3,2393.8,3.62556]
[1728030257024,1.32507,2394.4,2393.8,3.2078]
[1728030257323,1.32507,2394.4,2393.9,0.41773]
[1728030257529,0.41769,2394.2,2393.9,0.9723]
[1728030257724,1.04409,2394.6,2393.9,0.9723]
[1728030257725,0.41769,2394.3,2393.9,0.9723]
[1728030257931,0.41769,2394.2,2393.9,0.9723]
[1728030258132,0.41772,2394.1,2393.9,0.9723]
[1728030258427,0.41772,2394.1,2393.8,3.2078]
[1728030258428,0.41774,2394.0,2393.8,3.2078]
[1728030258630,1.04419,2394.3,2393.8,3.2078]
[1728030258835,0.41771,2394.2,2393.8,3.2078]
[1728030259238,4.1606,2394.4,2393.8,3.2078]
[1728030259535,0.41769,2394.2,2393.8,3.2078]
[1728030259733,4.1606,2394.4,2393.8,4.0937]
[1728030259734,3.2078,2394.4,2393.8,4.0937]
[1728030260044,0.41766,2394.4,2393.9,0.41774]
[1728030260329,0.9528,2394.6,2393.8,4.0937]
[1728030260528,0.41765,2394.5,2393.9,0.41773]
[1728030260732,0.9528,2394.6,2393.9,0.41773]
[1728030261034,0.9528,2394.6,2393.8,4.0937]
[1728030261035,0.41765,2394.5,2394.0,0.41772]
[1728030261435,0.41767,2394.4,2393.8,4.0937]
[1728030261934,0.9528,2394.6,2393.8,4.0937]
[1728030262230,0.9528,2394.6,2393.9,4.01]
[1728030262421,1.37042,2394.6,2394.1,0.4177]
[1728030262622,0.41766,2394.4,2394.2,0.8912]
[1728030262830,0.41772,2394.1,2393.8,3.2078]
[1728030263036,0.41771,2394.1,2393.8,3.2078]
[1728030263435,3.2078,2394.4,2393.8,3.62556]
[1728030263436,0.41768,2394.3,2393.8,3.62556]
[1728030263735,3.2078,2394.4,2393.8,3.2078]
[1728030263736,0.41767,2394.4,2393.8,3.2078]
[1728030263932,0.41767,2394.4,2393.9,0.41774]
[1728030264135,0.41767,2394.4,2393.8,3.62555]
[1728030264336,4.1606,2394.6,2393.8,3.2078]
[1728030264533,5.20468,2394.6,2393.8,3.2078]
[1728030264834,0.41771,2394.1,2393.8,3.2078]
[1728030265227,3.2078,2394.3,2393.8,3.2078]
[1728030265534,0.41769,2394.2,2393.8,3.2078]
[1728030265841,0.41769,2394.2,2393.4,0.21]
[1728030265842,0.41779,2393.7,2393.4,0.21]
[1728030266139,5.9766,2394.1,2393.2,3.2078]
[1728030266329,5.0741,2394.1,2393.2,3.2078]
[1728030266531,0.41775,2393.9,2393.2,3.2078]
[1728030266728,0.41775,2393.9,2393.4,0.41782]
[1728030266944,0.41773,2394.0,2393.5,0.4178]
[1728030267129,0.9562,2394.1,2393.7,0.41778]
[1728030267530,0.9562,2394.1,2393.8,0.41776]
[1728030267741,0.9562,2394.1,2393.6,2.7135]
[1728030267946,1.37392,2394.1,2393.7,0.41778]
[1728030268132,1.37392,2394.1,2393.6,2.7135]
[1728030268133,0.41773,2394.0,2393.6,3.13129]
[1728030268441,0.9562,2394.1,2393.7,0.41778]
[1728030268442,1.37392,2394.1,2393.7,0.41778]
[1728030268635,1.37392,2394.1,2393.8,0.41775]
[1728030268636,0.9562,2394.1,2393.8,0.41775]
[1728030268835,0.41769,2394.2,2393.8,0.41776]
[1728030269037,0.41769,2394.2,2393.7,0.41777]
[1728030269536,0.41769,2394.2,2393.6,2.7135]
[1728030269743,0.41769,2394.2,2393.7,0.41777]
[1728030270233,5.9766,2394.4,2393.7,0.41777]
[1728030270542,0.41767,2394.3,2393.6,3.13129]
[1728030270742,7.02077,2394.4,2393.7,0.41777]
[1728030270743,0.41772,2394.1,2393.7,0.41777]
[1728030271241,0.41773,2394.0,2393.6,3.13129]
[1728030271543,0.41772,2394.1,2393.7,0.41777]
[1728030272338,9.2366,2394.4,2393.6,2.7135]
[1728030272541,9.2366,2394.4,2393.7,0.41777]
[1728030272542,0.41771,2394.1,2393.7,0.41777]
[1728030272737,0.41771,2394.1,2393.6,2.7135]
[1728030272937,0.41771,2394.1,2393.7,0.41778]
[1728030273339,10.28077,2394.4,2393.6,2.7135]
[1728030273541,0.4177,2394.2,2393.6,2.7135]
[1728030273740,0.4177,2394.2,2393.7,0.41778]
[1728030273935,0.41771,2394.1,2393.7,0.41778]
[1728030274138,0.41771,2394.1,2393.6,3.13128]
[1728030274541,10.28077,2394.4,2393.6,2.7135]
[1728030274743,0.4177,2394.2,2393.7,0.41777]
[1728030275341,0.41779,2393.7,2393.2,0.62786]
[1728030275548,3.2078,2394.1,2393.3,3.26]
[1728030275849,0.41773,2394.0,2393.6,0.41779]
[1728030276048,3.2078,2394.1,2393.6,0.9465]
[1728030276439,0.9271,2394.2,2393.6,0.9465]
[1728030276635,3.2078,2394.4,2394.1,0.41771]
[1728030276841,3.2078,2394.4,2394.0,6.88552]
[1728030276842,0.41766,2394.4,2394.0,6.88552]
[1728030277043,0.41766,2394.4,2394.1,2.7604]
[1728030277246,1.97118,2394.6,2394.1,2.7604]
[1728030277445,0.41769,2394.2,2394.1,1.7901]
[1728030277647,0.41768,2394.3,2394.1,0.9008]
[1728030277848,0.41769,2394.2,2394.1,0.9008]
[1728030279650,0.41769,2394.2,2393.9,0.8893]
[1728030279844,0.41772,2394.1,2393.8,0.9327]
[1728030280152,0.41772,2394.1,2393.4,3.26]
[1728030280153,0.9416,2394.1,2393.4,3.26]
[1728030280339,1.04432,2394.0,2393.4,4.1927]
[1728030280545,0.41778,2393.7,2393.4,0.9327]
[1728030281351,1.31027,2393.8,2393.4,0.9327]
[1728030283045,0.9548,2393.9,2393.4,0.9327]
[1728030283046,1.37255,2393.9,2393.4,0.9327]
[1728030283354,0.41774,2394.0,2393.5,0.4178]
[1728030283854,1.8668,2394.1,2393.5,0.4178]
[1728030284046,0.41774,2394.0,2393.5,3.6778]
[1728030284242,0.9416,2394.1,2393.5,3.26]
[1728030284447,0.41773,2394.0,2393.5,3.26]
[1728030284651,0.41773,2394.0,2393.5,3.6778]
[1728030285146,0.41775,2393.9,2393.5,3.6778]
[1728030285850,0.41775,2393.9,2393.5,3.26]
[1728030286049,0.9416,2394.1,2393.5,3.67781]
[1728030286252,0.41775,2393.9,2393.5,3.26]
[1728030286657,0.41774,2394.0,2393.5,3.67781]
[1728030287545,0.41774,2394.0,2393.4,4.1405]
[1728030287546,0.41775,2393.9,2393.4,0.9327]
[1728030287745,0.41779,2393.7,2393.4,0.9327]
[1728030287948,0.9454,2393.6,2393.4,0.9327]
[1728030289951,1.3632,2393.6,2393.4,0.9327]
[1728030290157,0.9454,2393.6,2393.4,0.9327]
[1728030291451,3.2078,2394.0,2393.4,0.9327]
[1728030291652,1.38458,2393.8,2393.4,0.9327]
[1728030291851,0.41779,2393.7,2393.4,0.9327]
[1728030293259,0.41781,2393.6,2393.4,0.9327]
[1728030293853,0.41781,2393.6,2393.1,8.75918]
[1728030294058,0.41781,2393.6,2393.1,9.68208]
[1728030294355,1.35469,2393.7,2393.1,9.68208]
[1728030294756,0.9369,2393.7,2393.1,9.68208]
[1728030294946,0.4178,2393.6,2393.1,9.68208]
[1728030295151,0.9369,2393.7,2393.1,9.68208]
[1728030295350,1.35469,2393.7,2393.1,9.68208]
[1728030295957,1.35469,2393.7,2393.2,0.41786]
[1728030296157,0.9668,2393.8,2393.2,0.41786]
[1728030296358,1.38457,2393.8,2393.3,3.26]
[1728030297063,1.38457,2393.8,2393.3,3.67784]
[1728030297262,1.38457,2393.8,2393.3,3.26]
[1728030297756,0.41779,2393.7,2393.3,3.26]
[1728030297962,1.38457,2393.8,2393.3,3.26]
[1728030298162,1.38457,2393.8,2393.5,3.26]
[1728030298163,0.9668,2393.8,2393.5,3.26]
[1728030298349,0.9668,2393.8,2393.6,2.7759]
[1728030299057,0.9668,2393.8,2393.6,1.8639]
[1728030300568,0.41778,2393.7,2393.4,3.2078]
[1728030300768,0.41778,2393.7,2393.2,3.17556]
[1728030301065,0.9668,2393.8,2393.3,0.41785]
[1728030301254,0.9668,2393.8,2393.4,6.4678]
[1728030301457,0.9668,2393.8,2393.5,0.41781]
[1728030301858,0.9668,2393.8,2393.6,0.9539]
[1728030302162,5.87537119,2394.2,2393.7,3.2078]
[1728030302163,4.90477119,2394.2,2393.7,3.2078]
[1728030302373,0.41766,2394.4,2393.9,3.26]
[1728030302556,0.41766,2394.4,2394.0,0.9539]
[1728030303370,0.41767,2394.4,2394.0,0.9539]
[1728030303570,0.41767,2394.4,2393.7,8.3577]
[1728030303571,4.30421,2394.3,2393.7,5.0977]
[1728030303862,0.41772,2394.1,2393.7,1.8899]
[1728030304063,0.9464,2394.0,2393.7,1.8899]
[1728030304264,0.41777,2393.8,2393.6,0.9539]
[1728030304469,0.9557,2393.9,2393.3,6.4678]
[1728030304664,0.41778,2393.7,2393.3,6.4678]
[1728030304866,4.2157,2393.9,2393.3,3.2078]
[1728030305166,0.4178,2393.6,2393.3,3.2078]
[1728030305365,0.8893,2393.5,2393.3,3.2078]
[1728030305566,1.30712,2393.5,2393.3,3.2078]
[1728030305960,5.32254119,2393.8,2393.3,3.62564]
[1728030306164,0.8893,2393.8,2393.3,3.2078]
[1728030306463,1.30707,2393.8,2393.3,3.62564]
[1728030306661,1.30707,2393.8,2393.3,3.2078]
[1728030306861,1.30707,2393.8,2393.4,0.9384]
[1728030306862,0.8893,2393.8,2393.4,0.9384]
[1728030307070,0.41781,2393.6,2393.3,3.2078]
[1728030307264,0.41782,2393.5,2393.3,3.2078]
[1728030307464,1.93374,2393.8,2393.3,3.2078]
[1728030307465,0.41783,2393.4,2393.3,3.2078]
[1728030307673,0.41781,2393.6,2393.3,3.2078]
[1728030307869,1.04446,2393.7,2393.3,3.2078]
[1728030308166,5.79407119,2393.8,2393.3,3.2078]
[1728030308468,0.41778,2393.7,2393.3,3.2078]
[1728030308860,0.41779,2393.7,2393.3,3.2078]
[1728030309063,1.30707,2393.8,2393.3,3.62565]
[1728030309369,1.30707,2393.8,2393.4,0.9384]
[1728030309370,0.8893,2393.8,2393.4,0.9384]
[1728030309763,0.41778,2393.7,2393.4,0.9384]
[1728030310767,8.11257119,2394.0,2393.5,3.26]
[1728030310968,0.9841,2394.2,2393.5,4.1523]
[1728030311266,2.02836,2394.2,2393.5,4.1523]
[1728030311576,0.9841,2394.2,2393.5,4.1523]
[1728030311777,0.41773,2394.0,2393.5,4.5701]
[1728030311968,0.41772,2394.1,2393.5,4.5701]
[1728030312169,9.15678119,2394.3,2393.8,0.41776]